bitfinex/quotes_BTCUSD_20220304
["timestamp","ask_amount","ask_price","bid_price","bid_amount"]
[1646362209782,0.36637083,41516.0,41505.0,0.36218618]
[1646362209981,0.22039178,41514.0,41505.0,0.36218618]
[1646362210407,0.36637083,41516.0,41505.0,0.36218618]
[1646362210608,0.21107295,41515.0,41505.0,0.36218618]
[1646362211010,0.1186,41516.0,41505.0,0.36218618]
[1646362211411,0.21824795,41511.0,41505.0,0.36218618]
[1646362211609,0.17854676,41510.0,41505.0,0.06018618]
[1646362211814,0.17854676,41510.0,41502.0,0.1156]
[1646362212408,0.17954676,41510.0,41502.0,0.1156]
[1646362212908,0.28762516,41508.0,41502.0,0.1156]
[1646362213110,0.35265549,41510.0,41502.0,0.1156]
[1646362213310,0.17954676,41510.0,41502.0,0.1156]
[1646362213709,0.17854676,41510.0,41502.0,0.1156]
[1646362214158,0.3452107,41510.0,41502.0,0.1156]
[1646362214360,0.17854676,41510.0,41502.0,0.1156]
[1646362214561,0.17954676,41510.0,41502.0,0.1156]
[1646362216362,0.24212254,41506.0,41502.0,0.1156]
[1646362216563,0.17854676,41510.0,41501.0,0.1371713]
[1646362218514,0.15534998,41503.0,41501.0,0.1371713]
[1646362224459,0.15534998,41503.0,41501.0,0.1401713]
[1646362224861,0.39856666,41509.0,41501.0,0.1401713]
[1646362225108,0.007642,41513.0,41501.0,0.1401713]
[1646362225109,0.59656763,41510.0,41501.0,0.1401713]
[1646362225307,0.19800097,41510.0,41501.0,0.1401713]
[1646362225508,0.22645303,41507.0,41501.0,0.1401713]
[1646362225907,0.396501,41507.0,41501.0,0.1371713]
[1646362226309,0.17004797,41507.0,41501.0,0.1371713]
[1646362226512,0.17004797,41507.0,41501.0,0.1391713]
[1646362227809,0.17004797,41507.0,41501.0,0.1371713]
[1646362228411,0.06911332,41505.0,41501.0,0.122553]
[1646362228612,0.02493431,41504.0,41501.0,0.122553]
[1646362229760,0.02493431,41504.0,41501.0,0.120553]
[1646362230559,0.02493431,41504.0,41501.0,0.121553]
[1646362231159,0.02493431,41504.0,41501.0,0.12148376]
[1646362231561,0.02493431,41504.0,41495.0,0.180844]
[1646362231562,1.3,41503.0,41495.0,0.180844]
[1646362231773,1.3,41503.0,41491.0,0.4151]
[1646362231774,0.34908532,41496.0,41491.0,0.4151]
[1646362231962,0.71579971,41492.0,41491.0,0.4151]
[1646362232163,0.43598773,41492.0,41491.0,0.4151]
[1646362232627,0.59266907,41492.0,41491.0,0.4151]
[1646362232830,0.89266907,41492.0,41491.0,0.4151]
[1646362233024,0.52598707,41492.0,41491.0,0.4151]
[1646362233426,0.45668134,41492.0,41491.0,0.4151]
[1646362233829,0.64899463,41492.0,41491.0,0.4151]
[1646362234028,0.45668134,41492.0,41491.0,0.4151]
[1646362234829,0.15668134,41492.0,41491.0,0.4151]
[1646362235029,0.34901205,41493.0,41491.0,0.4151]
[1646362235433,0.0648251,41494.0,41491.0,0.4151]
[1646362235434,0.29908832,41492.0,41491.0,0.4151]
[1646362236460,0.30108832,41492.0,41491.0,0.4151]
[1646362237069,0.002,41492.0,41491.0,0.4151]
[1646362237262,0.002,41492.0,41491.0,0.4149305]
[1646362237460,0.34901205,41497.0,41491.0,0.4149305]
[1646362237662,0.34901205,41498.0,41490.0,0.12061]
[1646362237861,0.58220354,41498.0,41491.0,0.16676588]
[1646362239962,0.3,41497.0,41490.0,0.060308]
[1646362241614,0.3,41497.0,41489.0,0.120617]
[1646362241816,0.3,41497.0,41491.0,0.060308]
[1646362242320,0.3,41497.0,41489.0,0.120617]
[1646362242516,0.302,41497.0,41489.0,0.120617]
[1646362243717,0.3,41497.0,41489.0,0.120617]
[1646362244567,0.3,41497.0,41489.0,0.122617]
[1646362245669,0.26209816,41496.0,41489.0,0.122617]
[1646362245868,0.26209816,41496.0,41489.0,0.120617]
[1646362246571,0.26509816,41496.0,41489.0,0.120617]
[1646362247619,0.19012836,41495.0,41489.0,0.120617]
[1646362247816,0.29963758,41494.0,41489.0,0.120617]
[1646362248416,0.3,41497.0,41489.0,0.120617]
[1646362248619,0.001,41494.0,41489.0,0.120617]
[1646362249620,0.28114017,41496.0,41489.0,0.120617]
[1646362250224,0.3,41497.0,41491.0,0.060304]
[1646362250719,0.1,41499.0,41491.0,0.060304]
[1646362250921,0.1185,41501.0,41492.0,0.3]
[1646362251126,0.1185,41501.0,41496.0,0.22845782]
[1646362251127,0.002,41501.0,41496.0,0.22845782]
[1646362251370,0.002,41501.0,41492.0,0.3]
[1646362251764,0.23839828,41503.0,41492.0,0.3]
[1646362252363,0.23839828,41503.0,41492.0,0.55778668]
[1646362253366,0.23839828,41503.0,41498.0,0.060295]
[1646362254569,0.07054138,41502.0,41498.0,0.062295]
[1646362254967,0.366682,41500.0,41498.0,0.062295]
[1646362255217,0.366682,41501.0,41498.0,0.062295]
[1646362255619,0.07054138,41502.0,41498.0,0.062295]
[1646362255817,0.366682,41501.0,41498.0,0.060295]
[1646362256018,0.07054138,41502.0,41498.0,0.060295]
[1646362256222,0.366682,41501.0,41498.0,0.060295]
[1646362256618,0.366682,41501.0,41498.0,0.061295]
[1646362257019,0.07054138,41502.0,41498.0,0.061295]
[1646362257419,0.366682,41500.0,41498.0,0.061295]
[1646362257620,0.366682,41501.0,41498.0,0.061295]
[1646362257818,0.366682,41501.0,41498.0,0.060295]
[1646362258022,0.366682,41500.0,41498.0,0.060295]
[1646362258218,0.366682,41502.0,41498.0,0.060295]
[1646362258621,0.002,41501.0,41498.0,0.060295]
[1646362259958,0.366682,41502.0,41498.0,0.060295]
[1646362260158,0.23839828,41503.0,41498.0,0.060295]
[1646362260360,0.366682,41502.0,41498.0,0.060295]
[1646362260564,0.366682,41502.0,41498.0,0.061295]
[1646362261862,0.366682,41502.0,41491.0,0.1176]
[1646362262709,0.20172623,41497.0,41491.0,0.1176]
[1646362262915,0.20172623,41497.0,41489.0,0.120617]
[1646362263120,0.002,41502.0,41489.0,0.120617]
[1646362263313,0.366682,41501.0,41491.0,0.060308]
[1646362263910,0.5592667,41503.0,41491.0,0.060308]
[1646362264111,0.17482396,41499.0,41491.0,0.060308]
[1646362264510,0.34892392,41497.0,41491.0,0.060308]
[1646362264713,0.34892392,41497.0,41491.0,0.062308]
[1646362265912,0.34892392,41496.0,41491.0,0.060308]
[1646362266573,0.34892392,41496.0,41491.0,0.062308]
[1646362266773,0.001,41501.0,41491.0,0.062308]
[1646362266774,0.34892392,41497.0,41491.0,0.062308]
[1646362267573,0.34892392,41498.0,41491.0,0.062308]
[1646362267875,0.34892392,41497.0,41491.0,0.060308]
[1646362268074,0.34892392,41496.0,41491.0,0.060308]
[1646362268876,0.34892392,41496.0,41492.0,0.060301]
[1646362269778,7.113e-05,41492.0,41491.0,0.060308]
[1646362269979,7.113e-05,41492.0,41489.0,0.120617]
[1646362270617,7.113e-05,41492.0,41491.0,0.002]
[1646362271819,7.113e-05,41492.0,41489.0,0.120617]
[1646362272219,7.113e-05,41492.0,41490.0,0.060308]
[1646362273323,7.113e-05,41492.0,41490.0,0.120609]
[1646362273969,7.113e-05,41492.0,41490.0,0.420609]
[1646362274268,0.34892392,41496.0,41491.0,0.7]
[1646362274465,0.34892392,41496.0,41490.0,0.420609]
[1646362274665,0.34892392,41496.0,41490.0,0.123609]
[1646362275468,0.34892392,41496.0,41490.0,0.36096046]
[1646362275870,0.34892392,41496.0,41490.0,0.120609]
[1646362276667,0.35192392,41496.0,41490.0,0.120609]
[1646362276868,0.34892392,41495.0,41490.0,0.120609]
[1646362278720,0.34892392,41495.0,41490.0,0.122609]
[1646362279521,0.16076057,41498.0,41490.0,0.122609]
[1646362279522,0.34892392,41494.0,41490.0,0.122609]
[1646362279922,0.14786211,41501.0,41490.0,0.120609]
[1646362280122,0.24786211,41501.0,41490.0,0.120609]
[1646362280323,0.34907835,41494.0,41490.0,0.120609]
[1646362280623,0.25086211,41501.0,41490.0,0.120609]
[1646362280823,0.103,41501.0,41490.0,0.120609]
[1646362281866,0.1,41501.0,41490.0,0.120609]
[1646362282566,0.1,41501.0,41490.0,0.122609]
[1646362282768,0.26056211,41503.0,41490.0,0.122609]
[1646362283169,0.2127,41503.0,41490.0,0.122609]
[1646362283369,0.27803441,41502.0,41490.0,0.122609]
[1646362283768,0.22686829,41499.0,41490.0,0.122609]
[1646362283968,0.22686829,41499.0,41490.0,0.120609]
[1646362284769,0.22686829,41499.0,41490.0,0.123609]
[1646362285813,0.22686829,41499.0,41490.0,0.120609]
[1646362286414,0.22686829,41499.0,41490.0,0.12024658]
[1646362286615,0.20634754,41491.0,41490.0,0.063301]
[1646362287915,0.20634754,41491.0,41490.0,0.060301]
[1646362288720,0.20634754,41491.0,41490.0,0.063301]
[1646362289368,0.43965568,41499.0,41490.0,0.063301]
[1646362289767,0.21278739,41499.0,41490.0,0.063301]
[1646362289971,0.83246596,41502.0,41490.0,0.060301]
[1646362290171,0.1,41501.0,41490.0,0.060301]
[1646362290369,0.19433166,41498.0,41490.0,0.060301]
[1646362290770,0.19433166,41498.0,41490.0,0.062301]
[1646362291872,0.19433166,41498.0,41490.0,0.060301]
[1646362292733,0.19433166,41498.0,41490.0,0.063301]
[1646362293937,0.19433166,41498.0,41490.0,0.060301]
[1646362294734,0.3,41500.0,41490.0,0.063301]
[1646362294936,0.15553511,41502.0,41490.0,0.063301]
[1646362295137,0.14786211,41502.0,41490.0,0.063301]
[1646362295339,0.1137,41503.0,41490.0,0.063301]
[1646362295736,0.1137,41503.0,41497.0,0.20999775]
[1646362295937,0.28191301,41502.0,41499.0,0.060294]
[1646362296367,0.28191301,41502.0,41498.0,0.180882]
[1646362296763,0.28291301,41502.0,41498.0,0.180882]
[1646362297464,0.28291301,41502.0,41498.0,0.120587]
[1646362297663,0.366682,41501.0,41498.0,0.120587]
[1646362297864,0.28291301,41502.0,41498.0,0.120587]
[1646362298164,0.28191301,41502.0,41498.0,0.120587]
[1646362298765,0.28191301,41502.0,41498.0,0.121587]
[1646362298965,0.28191301,41502.0,41498.0,0.001]
[1646362299865,0.28191301,41502.0,41497.0,0.120594]
[1646362300720,0.28191301,41502.0,41497.0,0.121594]
[1646362302015,0.366682,41501.0,41497.0,0.120594]
[1646362302215,0.28191301,41502.0,41497.0,0.120594]
[1646362302416,0.42977512,41502.0,41497.0,0.120594]
[1646362302617,0.368682,41501.0,41497.0,0.120594]
[1646362302816,0.46146326,41500.0,41497.0,0.120594]
[1646362303518,0.3,41500.0,41497.0,0.120594]
[1646362304076,0.42977512,41502.0,41497.0,0.120594]
[1646362304381,0.47827577,41502.0,41497.0,0.120594]
[1646362304577,0.28191301,41502.0,41497.0,0.120594]
[1646362304877,0.28191301,41502.0,41497.0,0.121594]
[1646362306280,0.28191301,41502.0,41497.0,0.120594]
[1646362306681,0.44786211,41503.0,41497.0,0.121594]
[1646362307081,0.54642877,41505.0,41497.0,0.121594]
[1646362307282,0.366682,41503.0,41497.0,0.121594]
[1646362307716,0.24786211,41504.0,41497.0,0.121594]
[1646362307917,0.1,41504.0,41497.0,0.120594]
[1646362308115,0.366682,41503.0,41497.0,0.120594]
[1646362308316,0.3,41504.0,41497.0,0.120594]
[1646362308518,0.1,41503.0,41497.0,0.120594]
[1646362309120,0.25836289,41500.0,41497.0,0.120594]
[1646362309317,0.1,41503.0,41497.0,0.120594]
[1646362309521,0.1,41503.0,41498.0,0.060294]
[1646362310218,0.79856666,41505.0,41499.0,0.120594]
[1646362310419,0.91311077,41504.0,41499.0,0.120594]
[1646362310618,0.39856666,41504.0,41499.0,0.120594]
[1646362310820,0.101,41503.0,41499.0,0.120594]
[1646362311019,0.366682,41502.0,41499.0,0.120594]
[1646362311221,0.26123302,41501.0,41499.0,0.120594]
[1646362311866,0.366682,41500.0,41499.0,0.120594]
[1646362312071,0.26123302,41501.0,41499.0,0.120594]
[1646362312467,0.14786211,41502.0,41499.0,0.120594]
[1646362312666,0.369682,41501.0,41499.0,0.120594]
[1646362312867,0.366682,41500.0,41499.0,0.120594]
[1646362313567,0.59160526,41500.0,41499.0,0.120594]
[1646362313768,0.22492326,41500.0,41499.0,0.120594]
[1646362314168,0.59160526,41500.0,41499.0,0.120594]
[1646362314770,0.22992326,41500.0,41499.0,0.120594]
[1646362314968,0.59660526,41500.0,41499.0,0.120594]
[1646362315226,0.52992326,41500.0,41499.0,0.120594]
[1646362315431,0.89660526,41500.0,41499.0,0.120594]
[1646362315622,0.52992326,41500.0,41499.0,0.120594]
[1646362315822,0.89660526,41500.0,41499.0,0.120594]
[1646362316122,0.52492326,41500.0,41499.0,0.120594]
[1646362316724,0.89660526,41500.0,41499.0,0.120594]
[1646362317022,0.67778537,41500.0,41499.0,0.120594]
[1646362317422,0.52992326,41500.0,41499.0,0.120594]
[1646362317622,0.67778537,41500.0,41499.0,0.120594]
[1646362317823,0.89660526,41500.0,41499.0,0.120594]
[1646362318023,0.52492326,41500.0,41499.0,0.120594]
[1646362318222,1.03946737,41500.0,41499.0,0.120594]
[1646362318425,0.71061861,41500.0,41499.0,0.120594]
[1646362318622,1.03946737,41500.0,41499.0,0.120594]
[1646362318885,0.67578537,41500.0,41499.0,0.120594]
[1646362319086,0.89460526,41500.0,41499.0,0.120594]
[1646362319287,0.52792326,41500.0,41499.0,0.120594]
[1646362319485,0.89460526,41500.0,41499.0,0.120594]
[1646362320087,0.89160526,41500.0,41499.0,0.120594]
[1646362320686,0.89460526,41500.0,41499.0,0.120594]
[1646362321087,0.52792326,41500.0,41499.0,0.120594]
[1646362321286,0.89460526,41500.0,41499.0,0.120594]
[1646362321490,0.52792326,41500.0,41499.0,0.120594]
[1646362321689,0.89460526,41500.0,41499.0,0.120594]
[1646362322492,0.52792326,41500.0,41499.0,0.120594]
[1646362322738,0.89460526,41500.0,41499.0,0.120594]
[1646362323238,1.04246737,41500.0,41499.0,0.120594]
[1646362324040,1.03946737,41500.0,41499.0,0.120594]
[1646362324939,1.04446737,41500.0,41499.0,0.120594]
[1646362326042,1.03946737,41500.0,41499.0,0.120594]
[1646362326870,1.04446737,41500.0,41499.0,0.120594]
[1646362328070,1.03946737,41500.0,41499.0,0.120594]
[1646362328872,1.04446737,41500.0,41499.0,0.120594]
[1646362330158,1.04446737,41500.0,41492.0,0.1206]
[1646362330160,0.06081182,41498.0,41492.0,0.1206]
[1646362330361,0.3989797,41495.0,41492.0,0.1206]
[1646362330655,0.714882,41494.0,41492.0,0.1206]
[1646362330953,0.366682,41492.0,41490.0,0.06032]
[1646362331153,1.11388346,41491.0,41490.0,0.06032]
[1646362331355,0.81388346,41491.0,41490.0,0.06032]
[1646362331556,0.514882,41491.0,41490.0,0.06032]
[1646362331754,0.66274411,41491.0,41490.0,0.06032]
[1646362332154,0.514882,41491.0,41490.0,0.06032]
[1646362332357,0.66274411,41491.0,41490.0,0.06032]
[1646362333755,0.96274411,41491.0,41490.0,0.06032]
[1646362334773,0.366682,41490.0,41476.0,0.241201]
[1646362334975,0.366682,41490.0,41473.0,0.241286]
[1646362334976,1.1441952,41482.0,41473.0,0.241286]
[1646362335172,0.43980611,41481.0,41475.0,0.060341]
[1646362335374,0.68766983,41481.0,41475.0,0.060341]
[1646362335571,0.68766983,41481.0,41477.0,0.01281975]
[1646362335572,0.86384124,41481.0,41477.0,0.01281975]
[1646362335771,0.86384124,41481.0,41479.0,0.060346]
[1646362336171,0.86384124,41481.0,41475.0,0.060341]
[1646362336172,0.98766802,41481.0,41475.0,0.060341]
[1646362336374,0.34893815,41479.0,41476.0,0.01214282]
[1646362336570,0.414882,41478.0,41476.0,0.01371332]
[1646362337371,0.052886,41478.0,41477.0,0.07241565]
[1646362337623,0.052886,41478.0,41477.0,0.060345]
[1646362338823,0.054886,41478.0,41477.0,0.060345]
[1646362339023,0.366709,41478.0,41477.0,0.060345]
[1646362340927,0.368709,41478.0,41477.0,0.060345]
[1646362341672,0.006675,41478.0,41477.0,0.060345]
[1646362342673,0.004675,41478.0,41477.0,0.060345]
[1646362342874,0.4482,41481.0,41477.0,0.060345]
[1646362343078,0.366709,41480.0,41477.0,0.060345]
[1646362343274,0.1,41479.0,41477.0,0.060345]
[1646362343474,0.004687,41478.0,41477.0,0.060345]
[1646362344073,0.36671,41478.0,41477.0,0.060345]
[1646362344973,0.004697,41478.0,41477.0,0.060345]
[1646362347021,0.006697,41478.0,41477.0,0.060345]
[1646362347419,0.289893,41478.0,41477.0,0.060345]
[1646362348019,0.1,41481.0,41477.0,0.060345]
[1646362348867,0.0357668,41482.0,41477.0,0.060345]
[1646362352917,0.0377668,41482.0,41477.0,0.060345]
[1646362354221,0.0357668,41482.0,41477.0,0.060345]
[1646362354920,0.0417668,41482.0,41477.0,0.060345]
[1646362355326,0.24786211,41485.0,41477.0,0.060345]
[1646362355522,0.1,41485.0,41477.0,0.060345]
[1646362355722,0.03551022,41485.0,41477.0,0.060345]
[1646362355923,0.03551022,41485.0,41479.0,0.28800211]
[1646362356126,0.03551022,41485.0,41481.0,0.17295301]
[1646362356389,0.03551022,41485.0,41481.0,0.29361301]
[1646362357287,0.03551022,41485.0,41482.0,0.06033]
[1646362357484,0.03551022,41485.0,41483.0,0.060328]
[1646362357686,0.03551022,41485.0,41483.0,0.05429521]
[1646362359489,0.03551022,41485.0,41482.0,0.06033]
[1646362360112,0.03551022,41485.0,41481.0,0.12066]
[1646362362019,0.03551022,41485.0,41480.0,0.120662]
[1646362363420,0.18337233,41485.0,41480.0,0.120662]
[1646362363878,0.53231048,41485.0,41480.0,0.120662]
[1646362364076,0.38444837,41485.0,41480.0,0.120662]
[1646362364276,0.1,41484.0,41480.0,0.120662]
[1646362366277,0.48444837,41485.0,41480.0,0.120662]
[1646362366878,0.48444837,41485.0,41476.0,0.23645218]
[1646362367082,0.34893815,41483.0,41474.0,0.174044]
[1646362367281,0.1,41482.0,41474.0,0.174044]
[1646362367629,0.06034685,41481.0,41474.0,0.174044]
[1646362367827,0.409285,41481.0,41474.0,0.060344]
[1646362368028,0.409285,41481.0,41474.0,0.28511187]
[1646362368429,0.409285,41481.0,41474.0,0.060344]
[1646362369035,0.06034685,41481.0,41474.0,0.060344]
[1646362370733,0.409285,41481.0,41474.0,0.060344]
[1646362372369,0.26768011,41476.0,41474.0,0.060344]
[1646362372673,0.26768011,41476.0,41470.0,0.32706859]
[1646362372674,0.45575393,41476.0,41470.0,0.120686]
[1646362372873,0.0482,41475.0,41470.0,0.120686]
[1646362373572,0.39713815,41475.0,41470.0,0.120686]
[1646362373772,0.0482,41475.0,41474.0,0.25933011]
[1646362373974,0.39713815,41475.0,41470.0,0.120686]
[1646362374374,0.0482,41475.0,41470.0,0.120686]
[1646362374575,0.34893815,41474.0,41470.0,0.120686]
[1646362374776,0.39713815,41474.0,41470.0,0.120686]
[1646362374976,0.39713815,41474.0,41472.0,0.27364539]
[1646362375220,0.34893815,41473.0,41470.0,0.121686]
[1646362375422,0.29921574,41471.0,41470.0,0.121686]
[1646362376220,0.29921574,41471.0,41470.0,0.120686]
[1646362376420,0.29921574,41471.0,41470.0,0.36320004]
[1646362376824,0.34893815,41473.0,41470.0,0.36320004]
[1646362377021,0.34893815,41473.0,41470.0,0.36520004]
[1646362378226,0.34893815,41473.0,41470.0,0.36320004]
[1646362378424,0.34893815,41474.0,41470.0,0.36320004]
[1646362378872,0.34893815,41474.0,41470.0,0.36420004]
[1646362379474,0.34893815,41473.0,41470.0,0.36420004]
[1646362380072,0.34893815,41473.0,41470.0,0.42454104]
[1646362380273,0.34893815,41473.0,41470.0,0.42354104]
[1646362380872,0.34893815,41473.0,41470.0,0.42454104]
[1646362382275,0.34893815,41473.0,41470.0,0.42354104]
[1646362382722,0.34893815,41473.0,41471.0,0.12069]
[1646362388169,0.02716706,41472.0,41471.0,0.12069]
[1646362388569,0.34911956,41472.0,41471.0,0.12069]
[1646362389771,0.02690143,41472.0,41471.0,0.12069]
[1646362389977,0.0482,41472.0,41471.0,0.12069]
[1646362390247,0.0482,41472.0,41466.0,0.001]
[1646362390248,0.88285283,41469.0,41466.0,0.001]
[1646362390441,2.28919116,41467.0,41464.0,0.44208381]
[1646362390637,0.34905583,41465.0,41464.0,0.44208381]
[1646362390835,0.11985346,41465.0,41464.0,0.44208381]
[1646362391232,0.42597848,41465.0,41464.0,0.44208381]
[1646362391431,0.57384059,41465.0,41464.0,0.44208381]
[1646362391631,0.26771557,41465.0,41464.0,0.44208381]
[1646362392035,0.42597848,41465.0,41464.0,0.44208381]
[1646362392234,0.45432502,41465.0,41464.0,0.44208381]
[1646362392637,0.47926031,41465.0,41464.0,0.44208381]
[1646362393334,0.45432502,41465.0,41464.0,0.44208381]
[1646362394872,0.1482,41465.0,41464.0,0.44208381]
[1646362395073,0.0482,41465.0,41464.0,0.44208381]
[1646362395674,0.29371494,41469.0,41464.0,0.44208381]
[1646362395877,0.29371494,41469.0,41466.0,0.21111727]
[1646362396074,0.14585283,41469.0,41466.0,0.21111727]
[1646362396274,0.30566024,41476.0,41466.0,0.21111727]
[1646362396475,0.02492076,41475.0,41472.0,0.060342]
[1646362396676,0.45352235,41479.0,41472.0,0.120684]
[1646362396875,0.02492008,41478.0,41472.0,0.120684]
[1646362397078,0.02492008,41479.0,41473.0,0.2511413]
[1646362397275,0.02492008,41478.0,41473.0,0.2511413]
[1646362397475,0.02492008,41477.0,41473.0,0.2511413]
[1646362397725,0.02492008,41476.0,41472.0,0.120684]
[1646362397927,0.34886405,41475.0,41472.0,0.120684]
[1646362399323,0.34886405,41474.0,41472.0,0.120684]
[1646362399525,0.34886405,41473.0,41471.0,0.120684]
[1646362400125,0.63862193,41473.0,41471.0,0.120684]
[1646362400323,0.01314807,41474.0,41471.0,0.120684]
[1646362401135,0.01314807,41474.0,41467.0,0.001]
[1646362401971,0.0502226,41474.0,41468.0,0.21905478]
[1646362402175,0.0502226,41474.0,41468.0,0.27940378]
[1646362402975,0.03707453,41474.0,41468.0,0.27940378]
[1646362403976,0.10968169,41475.0,41468.0,0.27940378]
[1646362404178,0.1,41475.0,41468.0,0.27940378]
[1646362404575,0.004,41474.0,41468.0,0.27940378]
[1646362405225,0.34889149,41473.0,41468.0,0.27940378]
[1646362405730,0.34889149,41472.0,41468.0,0.27940378]
[1646362406224,0.34889149,41472.0,41468.0,0.28140378]
[1646362407026,0.35089149,41472.0,41471.0,0.16003769]
[1646362407226,0.30407246,41476.0,41471.0,0.14403393]
[1646362407425,0.12492342,41475.0,41471.0,0.14403393]
[1646362407626,0.02492342,41474.0,41471.0,0.14403393]
[1646362408025,0.02492342,41474.0,41468.0,0.060349]
[1646362408626,0.1,41475.0,41469.0,0.01344635]
[1646362408885,0.1,41475.0,41470.0,0.25094442]
[1646362409081,0.30407246,41476.0,41470.0,0.01451489]
[1646362409280,0.30407246,41476.0,41472.0,0.01286]
[1646362409485,0.30407246,41476.0,41473.0,0.01264585]
[1646362409681,0.30407246,41476.0,41470.0,0.13229276]
[1646362409682,0.42242614,41476.0,41470.0,0.13229276]
[1646362409880,1.15942614,41476.0,41470.0,0.13229276]
[1646362410287,0.35227246,41476.0,41472.0,0.01195857]
[1646362410483,0.35227246,41476.0,41473.0,0.0147171]
[1646362410681,0.4015394,41478.0,41474.0,0.12068]
[1646362410883,0.01205,41477.0,41474.0,0.12068]
[1646362411282,0.0515394,41478.0,41474.0,0.12068]
[1646362411483,0.8852,41480.0,41474.0,0.12068]
[1646362411884,0.8852,41480.0,41474.0,0.13121654]
[1646362412087,0.8852,41480.0,41476.0,0.21549103]
[1646362412624,0.8852,41480.0,41477.0,0.01161395]
[1646362413523,0.8902,41480.0,41477.0,0.01161395]
[1646362414725,0.8852,41480.0,41477.0,0.01161395]
[1646362415324,0.7852,41480.0,41477.0,0.01161395]
[1646362415525,0.7902,41480.0,41477.0,0.01161395]
[1646362416773,0.7852,41480.0,41477.0,0.01161395]
[1646362417373,0.39881627,41479.0,41477.0,0.01161395]
[1646362417580,0.06034548,41482.0,41478.0,1.37053636]
[1646362417581,0.39881627,41482.0,41478.0,1.37053636]
[1646362417783,0.17341754,41487.0,41479.0,0.01313294]
[1646362417784,0.57223381,41487.0,41479.0,0.01313294]
[1646362418076,0.24103491,41495.0,41480.0,0.01338343]
[1646362418275,0.20887158,41495.0,41484.0,0.241263]
[1646362418475,0.06525632,41491.0,41486.0,0.01463357]
[1646362418674,0.06525632,41491.0,41484.0,0.241263]
[1646362418675,1.04179522,41490.0,41484.0,0.241263]
[1646362418879,1.04179522,41490.0,41484.0,0.120629]
[1646362419174,1.06679522,41490.0,41484.0,0.120629]
[1646362419375,1.06679522,41490.0,41484.0,0.37107393]
[1646362419574,0.737,41489.0,41484.0,0.120629]
[1646362419774,0.837,41489.0,41484.0,0.120629]
[1646362420428,0.81195714,41488.0,41484.0,0.120629]
[1646362420828,0.40591626,41487.0,41484.0,0.120629]
[1646362422531,0.40591626,41487.0,41483.0,0.120654]
[1646362423332,0.1,41487.0,41483.0,0.13197818]
[1646362423531,0.105,41487.0,41483.0,0.13197818]
[1646362423733,0.005,41487.0,41483.0,0.13197818]
[1646362423972,0.005,41487.0,41483.0,0.120654]
[1646362424177,0.39876641,41485.0,41483.0,0.120654]
[1646362424776,0.39876641,41486.0,41483.0,0.120654]
[1646362425575,0.40476641,41486.0,41483.0,0.13086999]
[1646362425777,0.40476641,41486.0,41483.0,0.120654]
[1646362426075,0.39876641,41485.0,41483.0,0.620654]
[1646362426478,0.39876641,41485.0,41481.0,0.01035945]
[1646362426683,0.39876641,41483.0,41477.0,0.01161922]
[1646362426878,0.39876641,41482.0,41469.0,0.43758452]
[1646362427079,0.60744439,41481.0,41469.0,0.43758452]
[1646362427276,0.60744439,41481.0,41477.0,0.26406911]
[1646362427476,0.20867798,41481.0,41473.0,0.20475656]
[1646362427728,0.20867798,41481.0,41474.0,0.01333522]
[1646362428327,0.60744439,41481.0,41474.0,0.01333522]
[1646362428527,0.22455399,41480.0,41474.0,0.01333522]
[1646362428726,0.0482,41480.0,41474.0,0.01333522]
[1646362429125,0.1482,41480.0,41472.0,0.2941929]
[1646362429330,0.1482,41480.0,41476.0,0.01289315]
[1646362429527,0.1532,41480.0,41476.0,0.01289315]
[1646362430429,0.1532,41480.0,41474.0,0.07045735]
[1646362430626,0.22426376,41477.0,41474.0,0.060341]
[1646362430829,0.22426376,41477.0,41474.0,0.07035874]
[1646362431028,0.27246376,41477.0,41474.0,0.07209681]
[1646362431229,0.0482,41477.0,41474.0,0.07209681]
[1646362431489,0.0532,41477.0,41474.0,0.060341]
[1646362431671,0.0532,41477.0,41474.0,0.07523741]
[1646362431878,0.0532,41477.0,41474.0,0.060341]
[1646362432072,0.0532,41477.0,41474.0,0.07387258]
[1646362432273,0.0532,41477.0,41474.0,0.35047098]
[1646362432875,0.0532,41477.0,41469.0,0.1167]
[1646362432876,0.0482,41477.0,41469.0,0.1167]
[1646362433076,0.737,41475.0,41469.0,0.1167]
[1646362433278,0.7852,41474.0,41467.0,0.2361]
[1646362433480,0.8852,41474.0,41467.0,0.2361]
[1646362433673,1.41356348,41474.0,41467.0,0.2361]
[1646362433873,0.97047545,41471.0,41467.0,0.2361]
[1646362434074,0.0482,41470.0,41467.0,0.2361]
[1646362434276,0.17779707,41470.0,41467.0,0.2361]
[1646362434579,0.17779707,41470.0,41469.0,0.01137105]
[1646362434580,0.0482,41470.0,41469.0,0.01137105]
[1646362435619,0.0482,41470.0,41468.0,0.120697]
[1646362435820,0.0482,41470.0,41469.0,0.01014014]
[1646362436019,0.0482,41470.0,41469.0,0.20112722]
[1646362438624,0.0482,41470.0,41469.0,0.01014014]
[1646362439177,0.0482,41470.0,41468.0,0.0127286]
[1646362442648,0.0442,41470.0,41468.0,0.0127286]
[1646362443442,0.0442,41470.0,41468.0,0.1334316]
[1646362443643,0.0442,41470.0,41469.0,0.01122671]
[1646362444848,1.3,41467.0,41456.0,0.11926527]
[1646362445055,1.3,41467.0,41455.0,0.0041]
[1646362445056,0.15,41465.0,41455.0,0.0041]
[1646362445249,0.0482,41464.0,41455.0,0.0041]
[1646362445446,0.29546883,41463.0,41455.0,0.01712138]
[1646362445644,0.18821275,41457.0,41455.0,0.01712138]
[1646362445846,0.7852,41462.0,41455.0,0.01712138]
[1646362445847,0.0482,41456.0,41455.0,0.01712138]
[1646362448376,0.0482,41456.0,41455.0,0.2636137]
[1646362448575,0.0482,41456.0,41455.0,0.25059232]
[1646362449379,0.12959707,41463.0,41455.0,0.27464232]
[1646362449578,0.02501,41468.0,41456.0,0.01110576]
[1646362449579,0.07321,41468.0,41456.0,0.01110576]
[1646362449880,0.5,41467.0,41456.0,0.01110576]
[1646362450325,0.69826273,41467.0,41456.0,0.01110576]
[1646362450526,0.19826273,41467.0,41456.0,0.01110576]
[1646362451124,0.19826273,41467.0,41460.0,0.25367205]